[Event "Titled Tuesday Blitz June 27 Early 2023"]
[White "Pap, Gyula"]
[Black "Ishowmoves57"]
[WhiteFideId "725323"]
[WhiteElo "2937"]
[BlackElo "2083"]
[Result "1-0"]
[Round "3"]
[TimeControl "180+2"]
[Date "2023.06.27"]
[WhiteClock "0:01:56"]
[BlackClock "0:00:08"]
[Board "174"]

1. d4 {[%clk 0:03:00]}  Nf6 {[%clk 0:02:56]} 2. c4 {[%clk 0:03:01]}  e6 {[%clk 0:02:55]} 3. Nc3 {[%clk 0:03:01]}  Bb4 {[%clk 0:02:54]} 4. Qb3 {[%clk 0:03:01]}  Bxc3+ {[%clk 0:02:51]} 5. Qxc3 {[%clk 0:03:01]}  d5 {[%clk 0:02:50]} 6. Bg5 {[%clk 0:02:44]}  O-O {[%clk 0:02:34]} 7. e3 {[%clk 0:02:43]}  Nbd7 {[%clk 0:02:24]} 8. Nf3 {[%clk 0:02:42]}  c5 {[%clk 0:02:22]} 9. dxc5 {[%clk 0:02:39]}  Nxc5 {[%clk 0:02:23]} 10. Bxf6 {[%clk 0:02:39]}  Qxf6 {[%clk 0:02:18]} 11. Qxf6 {[%clk 0:02:39]}  gxf6 {[%clk 0:02:18]} 12. cxd5 {[%clk 0:02:40]}  exd5 {[%clk 0:02:17]} 13. Rc1 {[%clk 0:02:40]}  Na4 {[%clk 0:02:14]} 14. b3 {[%clk 0:02:37]}  Nb6 {[%clk 0:02:13]} 15. Nd4 {[%clk 0:02:38]}  Be6 {[%clk 0:02:11]} 16. Bd3 {[%clk 0:02:37]}  Rac8 {[%clk 0:02:10]} 17. Kd2 {[%clk 0:02:38]}  Nd7 {[%clk 0:02:01]} 18. Nb5 {[%clk 0:02:29]}  Ne5 {[%clk 0:01:39]} 19. Be2 {[%clk 0:02:24]}  Rc6 {[%clk 0:01:22]} 20. Nxa7 {[%clk 0:02:23]}  Rxc1 {[%clk 0:01:17]} 21. Rxc1 {[%clk 0:02:24]}  Ra8 {[%clk 0:01:16]} 22. Nb5 {[%clk 0:02:24]}  Rxa2+ {[%clk 0:01:16]} 23. Rc2 {[%clk 0:02:25]}  Ra1 {[%clk 0:01:06]} 24. Nd4 {[%clk 0:02:24]}  Nc6 {[%clk 0:00:52]} 25. Nxc6 {[%clk 0:02:17]}  bxc6 {[%clk 0:00:53]} 26. Rxc6 {[%clk 0:02:18]}  Rh1 {[%clk 0:00:49]} 27. h3 {[%clk 0:02:17]}  Rb1 {[%clk 0:00:43]} 28. Rb6 {[%clk 0:02:14]}  Rb2+ {[%clk 0:00:37]} 29. Kd1 {[%clk 0:02:12]}  Bf5 {[%clk 0:00:36]} 30. Rxf6 {[%clk 0:02:05]}  Be6 {[%clk 0:00:30]} 31. Bg4 {[%clk 0:02:01]}  Kg7 {[%clk 0:00:26]} 32. Rf4 {[%clk 0:02:01]}  Rxb3 {[%clk 0:00:23]} 33. Ke2 {[%clk 0:02:00]}  Rb2+ {[%clk 0:00:20]} 34. Kf3 {[%clk 0:02:00]}  Bxg4+ {[%clk 0:00:19]} 35. hxg4 {[%clk 0:02:00]}  Rb5 {[%clk 0:00:18]} 36. Rf5 {[%clk 0:01:59]}  f6 {[%clk 0:00:18]} 37. Kg3 {[%clk 0:01:59]}  Kg6 {[%clk 0:00:19]} 38. Kh4 {[%clk 0:01:55]}  Rb2 {[%clk 0:00:17]} 39. Rf4 {[%clk 0:01:51]}  Rd2 {[%clk 0:00:17]} 40. Kg3 {[%clk 0:01:52]}  h6 {[%clk 0:00:17]} 41. Rd4 {[%clk 0:01:51]}  Rc2 {[%clk 0:00:16]} 42. Rxd5 {[%clk 0:01:52]}  Re2 {[%clk 0:00:16]} 43. Rf5 {[%clk 0:01:50]}  Re1 {[%clk 0:00:16]} 44. Rf4 {[%clk 0:01:49]}  Ra1 {[%clk 0:00:17]} 45. f3 {[%clk 0:01:49]}  Ra2 {[%clk 0:00:17]} 46. e4 {[%clk 0:01:50]}  Ra3 {[%clk 0:00:17]} 47. Rf5 {[%clk 0:01:51]}  Rb3 {[%clk 0:00:17]} 48. Kf4 {[%clk 0:01:51]}  Rc3 {[%clk 0:00:18]} 49. g3 {[%clk 0:01:51]}  Rc2 {[%clk 0:00:18]} 50. Rd5 {[%clk 0:01:51]}  Rf2 {[%clk 0:00:18]} 51. e5 {[%clk 0:01:51]}  fxe5+ {[%clk 0:00:18]} 52. Rxe5 {[%clk 0:01:52]}  Ra2 {[%clk 0:00:18]} 53. Re6+ {[%clk 0:01:52]}  Kf7 {[%clk 0:00:18]} 54. Rxh6 {[%clk 0:01:51]}  Ra4+ {[%clk 0:00:18]} 55. Kg5 {[%clk 0:01:51]}  Ra5+ {[%clk 0:00:18]} 56. Kh4 {[%clk 0:01:52]}  Ra3 {[%clk 0:00:19]} 57. f4 {[%clk 0:01:52]}  Ra1 {[%clk 0:00:20]} 58. Kg5 {[%clk 0:01:52]}  Ra5+ {[%clk 0:00:19]} 59. f5 {[%clk 0:01:53]}  Ra3 {[%clk 0:00:18]} 60. Rh7+ {[%clk 0:01:52]}  Kg8 {[%clk 0:00:18]} 61. Rb7 {[%clk 0:01:53]}  Rxg3 {[%clk 0:00:18]} 62. Kh5 {[%clk 0:01:52]}  Rc3 {[%clk 0:00:17]} 63. g5 {[%clk 0:01:52]}  Rc6 {[%clk 0:00:15]} 64. f6 {[%clk 0:01:52]}  Rc1 {[%clk 0:00:14]} 65. Kg6 {[%clk 0:01:53]}  Rc8 {[%clk 0:00:14]} 66. Rg7+ {[%clk 0:01:53]}  Kf8 {[%clk 0:00:14]} 67. Rh7 {[%clk 0:01:54]}  Kg8 {[%clk 0:00:10]} 68. f7+ {[%clk 0:01:54]}  Kf8 {[%clk 0:00:09]} 69. Rh8+ {[%clk 0:01:55]}  Ke7 {[%clk 0:00:08]} 70. Rxc8 {[%clk 0:01:56]} 1-0


[Site "https://www.chess.com"]

[Event "Titled Tuesday Blitz June 27 Early 2023"]
[White "Thecourseoisildur"]
[Black "Tarasova, Viktoriya"]
[BlackFideId "4175840"]
[WhiteElo "2530"]
[BlackElo "2349"]
[Result "0-1"]
[Round "3"]
[TimeControl "180+2"]
[Date "2023.06.27"]
[WhiteClock "0:00:10"]
[BlackClock "0:00:07"]
[Board "176"]

1. e4 {[%clk 0:03:00]}  e5 {[%clk 0:02:58]} 2. Nf3 {[%clk 0:02:59]}  Nc6 {[%clk 0:02:58]} 3. d4 {[%clk 0:02:59]}  exd4 {[%clk 0:02:58]} 4. Nxd4 {[%clk 0:03:00]}  Nf6 {[%clk 0:02:59]} 5. Nxc6 {[%clk 0:03:00]}  bxc6 {[%clk 0:02:58]} 6. Nd2 {[%clk 0:03:01]}  d5 {[%clk 0:02:57]} 7. exd5 {[%clk 0:03:02]}  cxd5 {[%clk 0:02:57]} 8. Bb5+ {[%clk 0:03:03]}  Bd7 {[%clk 0:02:56]} 9. Bxd7+ {[%clk 0:03:03]}  Qxd7 {[%clk 0:02:57]} 10. O-O {[%clk 0:03:04]}  Be7 {[%clk 0:02:57]} 11. b3 {[%clk 0:03:05]}  O-O {[%clk 0:02:57]} 12. Bb2 {[%clk 0:03:06]}  c5 {[%clk 0:02:58]} 13. Qf3 {[%clk 0:02:59]}  Rfe8 {[%clk 0:02:55]} 14. h3 {[%clk 0:02:58]}  Rad8 {[%clk 0:02:54]} 15. Rad1 {[%clk 0:02:57]}  Qc7 {[%clk 0:02:43]} 16. Rfe1 {[%clk 0:02:45]}  h6 {[%clk 0:02:32]} 17. Nf1 {[%clk 0:02:39]}  a5 {[%clk 0:02:12]} 18. a4 {[%clk 0:02:36]}  d4 {[%clk 0:02:11]} 19. Ng3 {[%clk 0:02:14]}  Bf8 {[%clk 0:02:08]} 20. Nf5 {[%clk 0:02:07]}  Qb6 {[%clk 0:01:39]} 21. Bc1 {[%clk 0:01:54]}  Nh7 {[%clk 0:01:26]} 22. Qg3 {[%clk 0:01:40]}  Kh8 {[%clk 0:01:23]} 23. Bd2 {[%clk 0:01:12]}  Nf6 {[%clk 0:01:16]} 24. Qh4 {[%clk 0:01:04]}  Kh7 {[%clk 0:01:02]} 25. Bg5 {[%clk 0:00:54]}  Rxe1+ {[%clk 0:00:55]} 26. Rxe1 {[%clk 0:00:52]}  Re8 {[%clk 0:00:56]} 27. Rxe8 {[%clk 0:00:46]}  Nxe8 {[%clk 0:00:54]} 28. Be7 {[%clk 0:00:44]}  Qe6 {[%clk 0:00:46]} 29. Bxf8 {[%clk 0:00:38]}  Qxf5 {[%clk 0:00:46]} 30. Qe7 {[%clk 0:00:33]}  Qxc2 {[%clk 0:00:22]} 31. Qxe8 {[%clk 0:00:32]}  Qc1+ {[%clk 0:00:22]} 32. Kh2 {[%clk 0:00:31]}  Qf4+ {[%clk 0:00:22]} 33. Kg1 {[%clk 0:00:27]}  Qc1+ {[%clk 0:00:22]} 34. Kh2 {[%clk 0:00:28]}  Qf4+ {[%clk 0:00:21]} 35. g3 {[%clk 0:00:28]}  Qxf2+ {[%clk 0:00:22]} 36. Kh1 {[%clk 0:00:28]}  Qf1+ {[%clk 0:00:21]} 37. Kh2 {[%clk 0:00:28]}  Qf2+ {[%clk 0:00:21]} 38. Kh1 {[%clk 0:00:29]}  Qf3+ {[%clk 0:00:21]} 39. Kh2 {[%clk 0:00:27]}  d3 {[%clk 0:00:17]} 40. Qd7 {[%clk 0:00:04]}  Qf2+ {[%clk 0:00:12]} 41. Kh1 {[%clk 0:00:04]}  d2 {[%clk 0:00:08]} 42. Bxc5 {[%clk 0:00:04]}  Qf1+ {[%clk 0:00:04]} 43. Kh2 {[%clk 0:00:03]}  d1=Q {[%clk 0:00:04]} 44. Qxd1 {[%clk 0:00:03]}  Qxd1 {[%clk 0:00:04]} 45. b4 {[%clk 0:00:04]}  Qc2+ {[%clk 0:00:04]} 46. Kg1 {[%clk 0:00:04]}  axb4 {[%clk 0:00:04]} 47. Bxb4 {[%clk 0:00:05]}  Qb1+ {[%clk 0:00:05]} 48. Be1 {[%clk 0:00:06]}  Qxe1+ {[%clk 0:00:05]} 49. Kg2 {[%clk 0:00:07]}  Qa1 {[%clk 0:00:05]} 50. a5 {[%clk 0:00:08]}  Qxa5 {[%clk 0:00:05]} 51. Kf3 {[%clk 0:00:09]}  Qa3+ {[%clk 0:00:06]} 52. Kg2 {[%clk 0:00:10]}  Kg6 {[%clk 0:00:06]} 53. Kf2 {[%clk 0:00:10]}  f5 {[%clk 0:00:07]} 0-1


[Site "https://www.chess.com"]

[Event "Titled Tuesday Blitz June 27 Early 2023"]
[White "arenal72"]
[Black "Lehtosaari, Mauri"]
[BlackFideId "501999"]
[WhiteElo "2347"]
[BlackElo "2526"]
[Result "1/2-1/2"]
[Round "3"]
[TimeControl "180+2"]
[Date "2023.06.27"]
[WhiteClock "0:00:08"]
[BlackClock "0:00:02"]
[Board "177"]

1. e4 {[%clk 0:03:00]}  c5 {[%clk 0:02:51]} 2. Nf3 {[%clk 0:02:59]}  e6 {[%clk 0:02:51]} 3. d4 {[%clk 0:02:58]}  cxd4 {[%clk 0:02:52]} 4. Nxd4 {[%clk 0:02:57]}  Qb6 {[%clk 0:02:48]} 5. Nc3 {[%clk 0:02:41]}  Bc5 {[%clk 0:02:43]} 6. Na4 {[%clk 0:02:27]}  Qa5+ {[%clk 0:02:34]} 7. c3 {[%clk 0:02:26]}  Bxd4 {[%clk 0:02:29]} 8. Qxd4 {[%clk 0:02:26]}  Nf6 {[%clk 0:02:23]} 9. Nc5 {[%clk 0:02:26]}  Nc6 {[%clk 0:02:21]} 10. Qe3 {[%clk 0:02:09]}  b6 {[%clk 0:01:52]} 11. Nb3 {[%clk 0:02:07]}  Qe5 {[%clk 0:01:42]} 12. Bd3 {[%clk 0:02:06]}  Qc7 {[%clk 0:01:02]} 13. O-O {[%clk 0:01:57]}  h5 {[%clk 0:01:00]} 14. f4 {[%clk 0:01:55]}  Ng4 {[%clk 0:00:59]} 15. Qf3 {[%clk 0:01:53]}  Bb7 {[%clk 0:00:58]} 16. h3 {[%clk 0:01:52]}  Nf6 {[%clk 0:00:57]} 17. Be3 {[%clk 0:01:52]}  h4 {[%clk 0:00:57]} 18. a4 {[%clk 0:01:49]}  Nh5 {[%clk 0:00:54]} 19. a5 {[%clk 0:01:49]}  Nxa5 {[%clk 0:00:49]} 20. Nxa5 {[%clk 0:01:47]}  bxa5 {[%clk 0:00:50]} 21. Qg4 {[%clk 0:01:45]}  Ng3 {[%clk 0:00:44]} 22. Qxg7 {[%clk 0:01:30]}  O-O-O {[%clk 0:00:38]} 23. Rf2 {[%clk 0:01:29]}  Bxe4 {[%clk 0:00:33]} 24. Qd4 {[%clk 0:01:26]}  Bxd3 {[%clk 0:00:28]} 25. Qxd3 {[%clk 0:01:27]}  d5 {[%clk 0:00:24]} 26. Qa6+ {[%clk 0:01:24]}  Qb7 {[%clk 0:00:22]} 27. Qxa5 {[%clk 0:01:21]}  Rd6 {[%clk 0:00:21]} 28. Qxa7 {[%clk 0:01:13]}  Qxa7 {[%clk 0:00:22]} 29. Rxa7 {[%clk 0:01:13]}  Kb8 {[%clk 0:00:23]} 30. Rxf7 {[%clk 0:01:11]}  Nf5 {[%clk 0:00:20]} 31. Bc5 {[%clk 0:01:09]}  Ra6 {[%clk 0:00:20]} 32. Ba3 {[%clk 0:01:06]}  Rc8 {[%clk 0:00:20]} 33. Re2 {[%clk 0:01:05]}  d4 {[%clk 0:00:20]} 34. Bb4 {[%clk 0:00:56]}  Ng3 {[%clk 0:00:17]} 35. Re1 {[%clk 0:00:55]}  Rd8 {[%clk 0:00:13]} 36. c4 {[%clk 0:00:45]}  d3 {[%clk 0:00:13]} 37. Bd2 {[%clk 0:00:43]}  Ra2 {[%clk 0:00:12]} 38. Kf2 {[%clk 0:00:35]}  Rxb2 {[%clk 0:00:12]} 39. Rd1 {[%clk 0:00:35]}  Ne4+ {[%clk 0:00:10]} 40. Ke3 {[%clk 0:00:35]}  Ng3 {[%clk 0:00:11]} 41. Rf6 {[%clk 0:00:30]}  Nf5+ {[%clk 0:00:07]} 42. Kf2 {[%clk 0:00:30]}  Re8 {[%clk 0:00:06]} 43. Rf7 {[%clk 0:00:20]}  Ng3 {[%clk 0:00:04]} 44. Rd7 {[%clk 0:00:19]}  Rb3 {[%clk 0:00:02]} 45. Ke3 {[%clk 0:00:14]}  Nf5+ {[%clk 0:00:02]} 46. Ke4 {[%clk 0:00:14]}  Ng3+ {[%clk 0:00:03]} 47. Kd4 {[%clk 0:00:14]}  Ne2+ {[%clk 0:00:01]} 48. Ke3 {[%clk 0:00:13]}  Ng3 {[%clk 0:00:02]} 49. Rxd3 {[%clk 0:00:12]}  Nf5+ {[%clk 0:00:02]} 50. Ke2 {[%clk 0:00:09]}  Ng3+ {[%clk 0:00:02]} 51. Ke3 {[%clk 0:00:10]}  Nf5+ {[%clk 0:00:01]} 52. Ke4 {[%clk 0:00:09]}  Ng3+ {[%clk 0:00:02]} 53. Ke3 {[%clk 0:00:08]} 1/2-1/2


[Site "https://www.chess.com"]

[Event "Titled Tuesday Blitz June 27 Early 2023"]
[White "Rodriguez Polo, Mateo"]
[Black "Eidelman, Gabriel"]
[WhiteFideId "24509396"]
[BlackFideId "30910544"]
[WhiteElo "2308"]
[BlackElo "2469"]
[Result "1-0"]
[Round "3"]
[TimeControl "180+2"]
[Date "2023.06.27"]
[WhiteClock "0:00:11"]
[BlackClock "0:00:05"]
[Board "180"]

1. e4 {[%clk 0:02:12]}  c5 {[%clk 0:02:56]} 2. Nf3 {[%clk 0:02:06]}  d6 {[%clk 0:02:55]} 3. Bb5+ {[%clk 0:02:05]}  Bd7 {[%clk 0:02:54]} 4. Bxd7+ {[%clk 0:02:03]}  Nxd7 {[%clk 0:02:55]} 5. c4 {[%clk 0:02:03]}  Ngf6 {[%clk 0:02:44]} 6. Nc3 {[%clk 0:02:02]}  e6 {[%clk 0:02:42]} 7. b3 {[%clk 0:01:58]}  Ne5 {[%clk 0:02:37]} 8. d3 {[%clk 0:01:51]}  Be7 {[%clk 0:02:35]} 9. Bb2 {[%clk 0:01:51]}  O-O {[%clk 0:02:30]} 10. O-O {[%clk 0:01:51]}  Nxf3+ {[%clk 0:02:23]} 11. Qxf3 {[%clk 0:01:51]}  Nd7 {[%clk 0:02:23]} 12. Rad1 {[%clk 0:01:49]}  Ne5 {[%clk 0:02:17]} 13. Qe2 {[%clk 0:01:49]}  Nc6 {[%clk 0:02:18]} 14. Qd2 {[%clk 0:01:37]}  Bf6 {[%clk 0:02:11]} 15. Ne2 {[%clk 0:01:31]}  Nd4 {[%clk 0:01:35]} 16. Bxd4 {[%clk 0:01:28]}  cxd4 {[%clk 0:01:24]} 17. b4 {[%clk 0:01:08]}  a6 {[%clk 0:01:13]} 18. a4 {[%clk 0:01:07]}  b5 {[%clk 0:01:13]} 19. cxb5 {[%clk 0:01:03]}  axb5 {[%clk 0:01:13]} 20. a5 {[%clk 0:01:04]}  d5 {[%clk 0:01:10]} 21. Ng3 {[%clk 0:00:52]}  Be7 {[%clk 0:00:56]} 22. Rc1 {[%clk 0:00:49]}  Qd6 {[%clk 0:00:52]} 23. Rc5 {[%clk 0:00:41]}  Rxa5 {[%clk 0:00:35]} 24. exd5 {[%clk 0:00:34]}  Ra4 {[%clk 0:00:25]} 25. Rxb5 {[%clk 0:00:23]}  exd5 {[%clk 0:00:14]} 26. Nf5 {[%clk 0:00:21]}  Qe5 {[%clk 0:00:13]} 27. Nxe7+ {[%clk 0:00:19]}  Qxe7 {[%clk 0:00:14]} 28. Rb1 {[%clk 0:00:17]}  Re8 {[%clk 0:00:11]} 29. g3 {[%clk 0:00:17]}  Qd6 {[%clk 0:00:10]} 30. Rb7 {[%clk 0:00:15]}  h6 {[%clk 0:00:09]} 31. b5 {[%clk 0:00:15]}  Qa3 {[%clk 0:00:07]} 32. b6 {[%clk 0:00:14]}  Qa2 {[%clk 0:00:08]} 33. Qxa2 {[%clk 0:00:14]}  Rxa2 {[%clk 0:00:09]} 34. Rd7 {[%clk 0:00:11]}  Raa8 {[%clk 0:00:06]} 35. b7 {[%clk 0:00:11]}  Rab8 {[%clk 0:00:06]} 36. Rxd5 {[%clk 0:00:11]}  g6 {[%clk 0:00:05]} 37. Rxd4 {[%clk 0:00:12]}  Kg7 {[%clk 0:00:06]} 38. Kg2 {[%clk 0:00:12]}  Kf6 {[%clk 0:00:06]} 39. h4 {[%clk 0:00:12]}  Ke5 {[%clk 0:00:07]} 40. Rc4 {[%clk 0:00:12]}  Kd5 {[%clk 0:00:07]} 41. Rb5+ {[%clk 0:00:10]}  Kd6 {[%clk 0:00:07]} 42. Rd4+ {[%clk 0:00:11]}  Kc6 {[%clk 0:00:07]} 43. Rb1 {[%clk 0:00:10]}  Re7 {[%clk 0:00:05]} 44. Rc4+ {[%clk 0:00:10]}  Kd6 {[%clk 0:00:06]} 45. Kf3 {[%clk 0:00:09]}  Rexb7 {[%clk 0:00:05]} 46. Rxb7 {[%clk 0:00:08]}  Rxb7 {[%clk 0:00:06]} 47. Re4 {[%clk 0:00:08]}  Rb3 {[%clk 0:00:04]} 48. Re3 {[%clk 0:00:09]}  Kd5 {[%clk 0:00:03]} 49. g4 {[%clk 0:00:07]}  Rb6 {[%clk 0:00:04]} 50. Re4 {[%clk 0:00:06]}  f5 {[%clk 0:00:02]} 51. gxf5 {[%clk 0:00:06]}  gxf5 {[%clk 0:00:02]} 52. Ra4 {[%clk 0:00:06]}  Ke5 {[%clk 0:00:03]} 53. Ra5+ {[%clk 0:00:06]}  Kf6 {[%clk 0:00:03]} 54. d4 {[%clk 0:00:05]}  Rb4 {[%clk 0:00:03]} 55. Rd5 {[%clk 0:00:04]}  Rb2 {[%clk 0:00:02]} 56. Kg3 {[%clk 0:00:03]}  Ke6 {[%clk 0:00:02]} 57. Ra5 {[%clk 0:00:03]}  Rd2 {[%clk 0:00:01]} 58. Re5+ {[%clk 0:00:04]}  Kf6 {[%clk 0:00:01]} 59. Rd5 {[%clk 0:00:04]}  Re2 {[%clk 0:00:01]} 60. Kf3 {[%clk 0:00:03]}  Rd2 {[%clk 0:00:02]} 61. h5 {[%clk 0:00:03]}  Ke6 {[%clk 0:00:02]} 62. Ra5 {[%clk 0:00:03]}  Rxd4 {[%clk 0:00:02]} 63. Ra6+ {[%clk 0:00:04]}  Rd6 {[%clk 0:00:02]} 64. Rxd6+ {[%clk 0:00:04]}  Kxd6 {[%clk 0:00:03]} 65. Kf4 {[%clk 0:00:04]}  Ke6 {[%clk 0:00:04]} 66. Kf3 {[%clk 0:00:03]}  Ke5 {[%clk 0:00:03]} 67. Ke3 {[%clk 0:00:03]}  f4+ {[%clk 0:00:02]} 68. Kf3 {[%clk 0:00:04]}  Kf5 {[%clk 0:00:03]} 69. Kg2 {[%clk 0:00:04]}  Kg4 {[%clk 0:00:04]} 70. f3+ {[%clk 0:00:04]}  Kxh5 {[%clk 0:00:04]} 71. Kh3 {[%clk 0:00:04]}  Kg5 {[%clk 0:00:04]} 72. Kg2 {[%clk 0:00:05]}  Kf5 {[%clk 0:00:05]} 73. Kh3 {[%clk 0:00:05]}  Ke5 {[%clk 0:00:05]} 74. Kg4 {[%clk 0:00:05]}  h5+ {[%clk 0:00:06]} 75. Kxh5 {[%clk 0:00:06]}  Kd4 {[%clk 0:00:06]} 76. Kg5 {[%clk 0:00:06]}  Ke3 {[%clk 0:00:06]} 77. Kg4 {[%clk 0:00:07]}  Kd4 {[%clk 0:00:05]} 78. Kxf4 {[%clk 0:00:08]}  Kd5 {[%clk 0:00:04]} 79. Kg5 {[%clk 0:00:08]}  Kd6 {[%clk 0:00:05]} 80. Kg6 {[%clk 0:00:08]}  Ke5 {[%clk 0:00:06]} 81. Kg5 {[%clk 0:00:09]}  Ke6 {[%clk 0:00:06]} 82. f4 {[%clk 0:00:09]}  Ke7 {[%clk 0:00:07]} 83. Kg6 {[%clk 0:00:08]}  Kf8 {[%clk 0:00:08]} 84. Kf6 {[%clk 0:00:09]}  Ke8 {[%clk 0:00:07]} 85. Kg7 {[%clk 0:00:09]}  Ke7 {[%clk 0:00:07]} 86. f5 {[%clk 0:00:10]}  Kd7 {[%clk 0:00:05]} 87. f6 {[%clk 0:00:11]} 1-0


[Site "https://www.chess.com"]

[Event "Titled Tuesday Blitz June 27 Early 2023"]
[White "Acikel, Mert"]
[Black "Grossboss19"]
[WhiteFideId "12956465"]
[WhiteElo "2272"]
[BlackElo "2442"]
[Result "1-0"]
[Round "3"]
[TimeControl "180+2"]
[Date "2023.06.27"]
[WhiteClock "0:00:09"]
[BlackClock "0:00:00"]
[Board "181"]

1. e4 {[%clk 0:02:24]}  c5 {[%clk 0:02:58]} 2. Nf3 {[%clk 0:02:24]}  d6 {[%clk 0:02:51]} 3. Bb5+ {[%clk 0:02:23]}  Nd7 {[%clk 0:02:50]} 4. Ba4 {[%clk 0:02:23]}  a6 {[%clk 0:02:50]} 5. c4 {[%clk 0:02:23]}  Nf6 {[%clk 0:02:49]} 6. O-O {[%clk 0:02:24]}  Nxe4 {[%clk 0:02:43]} 7. Re1 {[%clk 0:02:23]}  Nf6 {[%clk 0:02:43]} 8. d4 {[%clk 0:02:22]}  cxd4 {[%clk 0:02:42]} 9. Nxd4 {[%clk 0:02:23]}  g6 {[%clk 0:02:35]} 10. Nc3 {[%clk 0:01:37]}  Bg7 {[%clk 0:02:32]} 11. Bg5 {[%clk 0:01:36]}  O-O {[%clk 0:02:24]} 12. Qd2 {[%clk 0:01:36]}  Nc5 {[%clk 0:02:14]} 13. Bc2 {[%clk 0:01:35]}  Ne6 {[%clk 0:02:13]} 14. Nxe6 {[%clk 0:01:31]}  Bxe6 {[%clk 0:02:13]} 15. b3 {[%clk 0:01:31]}  Rc8 {[%clk 0:02:11]} 16. Rad1 {[%clk 0:01:18]}  Qc7 {[%clk 0:02:04]} 17. Bxf6 {[%clk 0:01:11]}  Bxf6 {[%clk 0:02:01]} 18. Nd5 {[%clk 0:01:11]}  Bxd5 {[%clk 0:02:01]} 19. Qxd5 {[%clk 0:01:12]}  b5 {[%clk 0:02:01]} 20. Bd3 {[%clk 0:01:12]}  b4 {[%clk 0:02:00]} 21. g3 {[%clk 0:01:08]}  Bg7 {[%clk 0:01:55]} 22. Be4 {[%clk 0:01:07]}  Rfd8 {[%clk 0:01:53]} 23. Re2 {[%clk 0:01:05]}  e6 {[%clk 0:01:46]} 24. Qd3 {[%clk 0:01:00]}  Bc3 {[%clk 0:01:40]} 25. Qf3 {[%clk 0:00:58]}  a5 {[%clk 0:01:37]} 26. Bb7 {[%clk 0:00:51]}  Rb8 {[%clk 0:01:36]} 27. Be4 {[%clk 0:00:50]}  a4 {[%clk 0:01:30]} 28. h4 {[%clk 0:00:42]}  Qa5 {[%clk 0:01:13]} 29. Kg2 {[%clk 0:00:39]}  a3 {[%clk 0:01:08]} 30. Qf4 {[%clk 0:00:36]}  Qe5 {[%clk 0:01:07]} 31. Qf3 {[%clk 0:00:29]}  Qf6 {[%clk 0:01:07]} 32. Qd3 {[%clk 0:00:20]}  Rd7 {[%clk 0:01:04]} 33. Bc6 {[%clk 0:00:20]}  Rdd8 {[%clk 0:01:03]} 34. Bf3 {[%clk 0:00:20]}  Rbc8 {[%clk 0:01:00]} 35. h5 {[%clk 0:00:20]}  Kg7 {[%clk 0:00:58]} 36. Qe3 {[%clk 0:00:18]}  Be5 {[%clk 0:00:54]} 37. h6+ {[%clk 0:00:18]}  Kg8 {[%clk 0:00:53]} 38. Bb7 {[%clk 0:00:16]}  Rb8 {[%clk 0:00:53]} 39. Be4 {[%clk 0:00:16]}  Bc3 {[%clk 0:00:52]} 40. Qd3 {[%clk 0:00:15]}  Qg5 {[%clk 0:00:51]} 41. Rh1 {[%clk 0:00:14]}  Rb6 {[%clk 0:00:41]} 42. Qf3 {[%clk 0:00:14]}  f5 {[%clk 0:00:35]} 43. Bd3 {[%clk 0:00:12]}  Qf6 {[%clk 0:00:33]} 44. Qe3 {[%clk 0:00:11]}  Bd4 {[%clk 0:00:32]} 45. Qxe6+ {[%clk 0:00:12]}  Qxe6 {[%clk 0:00:32]} 46. Rxe6 {[%clk 0:00:13]}  Kf7 {[%clk 0:00:33]} 47. Rhe1 {[%clk 0:00:13]}  Be5 {[%clk 0:00:33]} 48. R1xe5 {[%clk 0:00:07]}  dxe5 {[%clk 0:00:32]} 49. Rxb6 {[%clk 0:00:07]}  Rxd3 {[%clk 0:00:33]} 50. Rxb4 {[%clk 0:00:07]}  Rd2 {[%clk 0:00:33]} 51. Rb7+ {[%clk 0:00:08]}  Kg8 {[%clk 0:00:33]} 52. Ra7 {[%clk 0:00:08]}  Rxa2 {[%clk 0:00:32]} 53. b4 {[%clk 0:00:08]}  Rb2 {[%clk 0:00:30]} 54. Rxa3 {[%clk 0:00:08]}  Rxb4 {[%clk 0:00:30]} 55. Ra5 {[%clk 0:00:06]}  e4 {[%clk 0:00:29]} 56. Rc5 {[%clk 0:00:06]}  Rb7 {[%clk 0:00:28]} 57. Kf1 {[%clk 0:00:05]}  Kf7 {[%clk 0:00:28]} 58. Ke2 {[%clk 0:00:06]}  Ke6 {[%clk 0:00:29]} 59. Rc8 {[%clk 0:00:06]}  Ke5 {[%clk 0:00:27]} 60. Ke3 {[%clk 0:00:03]}  Rb3+ {[%clk 0:00:27]} 61. Ke2 {[%clk 0:00:04]}  Kd4 {[%clk 0:00:25]} 62. Rc7 {[%clk 0:00:04]}  Rb2+ {[%clk 0:00:25]} 63. Kf1 {[%clk 0:00:05]}  e3 {[%clk 0:00:25]} 64. fxe3+ {[%clk 0:00:05]}  Kxe3 {[%clk 0:00:26]} 65. Rxh7 {[%clk 0:00:06]}  Kf3 {[%clk 0:00:26]} 66. Ke1 {[%clk 0:00:06]}  g5 {[%clk 0:00:20]} 67. Rf7 {[%clk 0:00:06]}  Kxg3 {[%clk 0:00:19]} 68. h7 {[%clk 0:00:05]}  Rh2 {[%clk 0:00:19]} 69. Rxf5 {[%clk 0:00:05]}  g4 {[%clk 0:00:20]} 70. Rf7 {[%clk 0:00:04]}  Kg2 {[%clk 0:00:20]} 71. c5 {[%clk 0:00:05]}  g3 {[%clk 0:00:18]} 72. c6 {[%clk 0:00:05]}  Kg1 {[%clk 0:00:18]} 73. Rf1+ {[%clk 0:00:05]}  Kg2 {[%clk 0:00:18]} 74. c7 {[%clk 0:00:06]}  Rxh7 {[%clk 0:00:17]} 75. c8=Q {[%clk 0:00:06]}  Re7+ {[%clk 0:00:17]} 76. Kd2 {[%clk 0:00:06]}  Kxf1 {[%clk 0:00:18]} 77. Qf5+ {[%clk 0:00:06]}  Kg2 {[%clk 0:00:16]} 78. Qd5+ {[%clk 0:00:07]}  Kh3 {[%clk 0:00:14]} 79. Qh1+ {[%clk 0:00:06]}  Kg4 {[%clk 0:00:15]} 80. Qg2 {[%clk 0:00:06]}  Rf7 {[%clk 0:00:14]} 81. Qe4+ {[%clk 0:00:06]}  Rf4 {[%clk 0:00:15]} 82. Qh1 {[%clk 0:00:07]}  Rf2+ {[%clk 0:00:14]} 83. Ke3 {[%clk 0:00:07]}  Rh2 {[%clk 0:00:14]} 84. Qe4+ {[%clk 0:00:07]}  Kh3 {[%clk 0:00:14]} 85. Kf3 {[%clk 0:00:07]}  Rf2+ {[%clk 0:00:14]} 86. Ke3 {[%clk 0:00:06]}  Kh2 {[%clk 0:00:14]} 87. Qh4+ {[%clk 0:00:06]}  Kg2 {[%clk 0:00:14]} 88. Qh5 {[%clk 0:00:05]}  Kg1 {[%clk 0:00:12]} 89. Qh3 {[%clk 0:00:05]}  g2 {[%clk 0:00:10]} 90. Qg3 {[%clk 0:00:03]}  Rf1 {[%clk 0:00:09]} 91. Qg4 {[%clk 0:00:04]}  Re1+ {[%clk 0:00:09]} 92. Kf3 {[%clk 0:00:04]}  Rf1+ {[%clk 0:00:08]} 93. Kg3 {[%clk 0:00:05]}  Rf8 {[%clk 0:00:04]} 94. Qg5 {[%clk 0:00:02]}  Kf1 {[%clk 0:00:03]} 95. Qc1+ {[%clk 0:00:02]}  Ke2 {[%clk 0:00:04]} 96. Kxg2 {[%clk 0:00:03]}  Rg8+ {[%clk 0:00:04]} 97. Kh3 {[%clk 0:00:03]}  Rh8+ {[%clk 0:00:05]} 98. Kg4 {[%clk 0:00:03]}  Rg8+ {[%clk 0:00:06]} 99. Kf5 {[%clk 0:00:04]}  Rf8+ {[%clk 0:00:07]} 100. Ke6 {[%clk 0:00:05]}  Rf3 {[%clk 0:00:07]} 101. Qc2+ {[%clk 0:00:05]}  Ke1 {[%clk 0:00:07]} 102. Qe4+ {[%clk 0:00:06]}  Kf2 {[%clk 0:00:07]} 103. Kd5 {[%clk 0:00:06]}  Re3 {[%clk 0:00:06]} 104. Qh4+ {[%clk 0:00:06]}  Rg3 {[%clk 0:00:06]} 105. Kd4 {[%clk 0:00:07]}  Kf3 {[%clk 0:00:06]} 106. Qe4+ {[%clk 0:00:07]}  Kf2 {[%clk 0:00:06]} 107. Qf4+ {[%clk 0:00:08]}  Rf3 {[%clk 0:00:07]} 108. Qh2+ {[%clk 0:00:09]}  Kf1 {[%clk 0:00:06]} 109. Ke4 {[%clk 0:00:09]}  Rc3 {[%clk 0:00:06]} 110. Qh1+ {[%clk 0:00:08]}  Ke2 {[%clk 0:00:06]} 111. Qg2+ {[%clk 0:00:09]}  Kd1 {[%clk 0:00:06]} 112. Qb2 {[%clk 0:00:07]}  Rc2 {[%clk 0:00:06]} 113. Qb3 {[%clk 0:00:07]}  Kd2 {[%clk 0:00:05]} 114. Kd4 {[%clk 0:00:07]}  Kc1 {[%clk 0:00:03]} 115. Kd3 {[%clk 0:00:06]}  Rd2+ {[%clk 0:00:03]} 116. Ke3 {[%clk 0:00:07]}  Re2+ {[%clk 0:00:01]} 117. Kd4 {[%clk 0:00:06]}  Rd2+ {[%clk 0:00:02]} 118. Kc4 {[%clk 0:00:07]}  Rc2+ {[%clk 0:00:02]} 119. Kd5 {[%clk 0:00:07]}  Rd2+ {[%clk 0:00:02]} 120. Ke4 {[%clk 0:00:08]}  Re2+ {[%clk 0:00:02]} 121. Kf3 {[%clk 0:00:08]}  Rd2 {[%clk 0:00:02]} 122. Qa3+ {[%clk 0:00:09]}  Kb1 {[%clk 0:00:00]} 123. Ke3 {[%clk 0:00:09]} 1-0


[Site "https://www.chess.com"]